fUST/lending_fUST_20250515
["ID","MTS","AMOUNT","RATE_DAILY","PERIOD"]
[361094307,1747252243041,-400.0,0.00024,2]
[361094310,1747252243051,-68.952406,0.00024658,2]
[361094312,1747252243062,-231.047594,0.00024658,2]
[361094314,1747252243072,-29.352406,0.00025105,2]
[361096916,1747252745848,161.047594,0.00013699,2]
[361096917,1747252842098,318.548161,0.00027397,120]
[361099172,1747253763157,161.047594,0.00013699,2]
[361099173,1747253821183,238.91112,0.00027397,120]
[361099238,1747254632293,-2376.83991191,0.000212,3]
[361099240,1747254632302,-500.0,0.000212,2]
[361099242,1747254632311,-500.0,0.000212,2]
[361099244,1747254632320,-555.83047993,0.000212,2]
[361099246,1747254632330,-500.0,0.000212,2]
[361099248,1747254632339,-500.0,0.000212,2]
[361099250,1747254632348,-173.41056725,0.000212,2]
[361099252,1747254632357,-500.0,0.000212,2]
[361099254,1747254632366,-470.29162091,0.000212,2]
[361099256,1747254632376,-500.0,0.000212,2]
[361099258,1747254632385,-500.0,0.000212,2]
[361099260,1747254632394,-500.0,0.000212,2]
[361099262,1747254632403,-525.88149959,0.000212,2]
[361099266,1747254632420,-300.0,0.000212,2]
[361099269,1747254632432,-168.0,0.000212,2]
[361099272,1747254632442,-1093.0,0.000212,2]
[361099275,1747254632451,-193.0,0.000212,2]
[361099278,1747254632460,-3292.55295809,0.00021201,2]
[361099281,1747254632473,-20288.52233306,0.00021201,2]
[361099283,1747254632483,-1275.807786,0.00021202,2]
[361099285,1747254632493,-1275.807786,0.00021202,2]
[361099287,1747254632502,-1275.807786,0.00021202,2]
[361099289,1747254632511,-1275.807786,0.00021202,2]
[361099291,1747254632521,-1275.807786,0.00021202,2]
[361099294,1747254632531,-1275.807786,0.00021202,2]
[361099296,1747254632541,-151.0,0.00021202,2]
[361099298,1747254632550,-223.536373,0.00021202,2]
[361099299,1747254632561,-1275.807786,0.00021203,2]
[361099302,1747254632570,-1275.807786,0.00021203,2]
[361099304,1747254632579,-629.21833357,0.00021203,2]
[361099306,1747254632588,-500.0,0.00021203,2]
[361099308,1747254632597,-178.87494476,0.00021203,2]
[361099310,1747254632605,-500.0,0.00021203,2]
[361099312,1747254632614,-1275.807786,0.00021204,2]
[361099314,1747254632623,-1275.807786,0.00021204,2]
[361099316,1747254632630,-1275.807786,0.00021204,2]
[361099318,1747254632640,-1275.807786,0.00021204,2]
[361099320,1747254632651,-2000.0,0.00021204,2]
[361099322,1747254632660,-174.71269952,0.00021304,2]
[361099324,1747254632670,-198.804896,0.000219,2]
[361099326,1747254632680,-1275.807786,0.000219,2]
[361099328,1747254632689,-1275.807786,0.000219,2]
[361099330,1747254632699,-6168.90664909,0.000219,6]
[361099332,1747254632708,-161.047594,0.00021918,2]
[361099334,1747254632717,-500.0,0.00021918,2]
[361099336,1747254632726,-500.0,0.00021918,2]
[361099338,1747254632735,-500.0,0.00021918,2]
[361099340,1747254632744,-500.0,0.00021918,2]
[361099342,1747254632753,-500.0,0.00021918,2]
[361099344,1747254632762,-500.0,0.00021918,2]
[361099346,1747254632771,-500.0,0.00021918,2]
[361099348,1747254632781,-500.0,0.00021918,2]
[361099350,1747254632790,-500.0,0.00021918,2]
[361099352,1747254632799,-500.0,0.00021918,2]
[361099354,1747254632809,-500.0,0.00021918,2]
[361099356,1747254632818,-500.0,0.00021918,2]
[361099358,1747254632827,-500.0,0.00021918,2]
[361099360,1747254632836,-500.0,0.00021918,2]
[361099362,1747254632846,-500.0,0.00021918,2]
[361099364,1747254632855,-443.46730501,0.00021918,2]
[361099366,1747254632864,-500.0,0.00021918,2]
[361099368,1747254632873,-500.0,0.00021918,2]
[361099370,1747254632882,-510.0,0.00021918,2]
[361099372,1747254632892,-510.0,0.00021918,2]
[361099374,1747254632901,-510.0,0.00021918,2]
[361099376,1747254632910,-510.0,0.00021918,2]
[361099378,1747254632919,-510.0,0.00021918,2]
[361099380,1747254632929,-510.0,0.00021918,2]
[361099382,1747254632938,-510.0,0.00021918,2]
[361099384,1747254632947,-510.0,0.00021918,2]
[361099386,1747254632956,-510.0,0.00021918,2]
[361099388,1747254632965,-6168.90664898,0.00022107,6]
[361099390,1747254632974,-1275.807786,0.00022107,2]
[361099392,1747254632983,-1275.807786,0.00022107,2]
[361099394,1747254632992,-6168.90664898,0.00022314,7]
[361099396,1747254633001,-1275.807786,0.00022314,2]
[361099398,1747254633012,-1275.807786,0.00022314,2]
[361099400,1747254633021,-1275.807786,0.0002252,2]
[361099403,1747254633031,-1275.80778247,0.0002252,2]
[361099405,1747254633040,-997.9747837,0.00022521,7]
[361099407,1747254633049,-6168.90664898,0.00022521,7]
[361099409,1747254633058,-6168.90664898,0.00022728,7]
[361099410,1747254633068,-6168.90664898,0.00022934,8]
[361099412,1747254633077,-300.0,0.00023056,2]
[361099415,1747254633087,-6168.90664898,0.00023141,8]
[361099417,1747254633096,-6168.90664898,0.00023348,9]
[361099418,1747254633105,-1800.21,0.000234,7]
[361099420,1747254633115,-6168.90664898,0.00023555,9]
[361099422,1747254633124,-210.2705068,0.00023654,2]
[361099425,1747254633134,-6168.90664898,0.00023762,9]
[361099427,1747254633144,-6168.90664898,0.00023969,10]
[361099429,1747254633153,-160.0,0.00024,7]
[361099431,1747254633162,-422.27619506,0.00024,7]
[361099433,1747254633172,-160.0,0.00024176,10]
[361099435,1747254633181,-6168.90664898,0.00024176,10]
[361099437,1747254633191,-422.27619506,0.00024176,10]
[361099439,1747254633201,-6168.90664898,0.00024383,11]
[361099441,1747254633211,-6168.90664898,0.0002459,11]
[361099443,1747254633221,-151.0,0.00024648,7]
[361099445,1747254633230,-151.0,0.00024649,7]
[361099447,1747254633239,-151.0,0.00024651,7]
[361099449,1747254633249,-151.0,0.00024651,7]
[361099451,1747254633258,-151.0,0.00024651,7]
[361099453,1747254633268,-151.0,0.00024652,7]
[361099455,1747254633277,-181.241063,0.00024653,7]
[361099457,1747254633287,-181.241063,0.00024653,7]
[361099459,1747254633296,-181.241063,0.00024653,7]
[361099461,1747254633306,-181.241063,0.00024653,7]
[361099463,1747254633316,-181.241063,0.00024653,7]
[361099465,1747254633326,-181.241063,0.00024653,7]
[361099467,1747254633335,-151.0,0.00024653,7]
[361099469,1747254633345,-151.0,0.00024654,7]
[361099471,1747254633354,-151.0,0.00024654,7]
[361099473,1747254633364,-209.089424,0.00024654,7]
[361099475,1747254633374,-181.241063,0.00024654,7]
[361099477,1747254633384,-181.241063,0.00024654,7]
[361099479,1747254633394,-151.702,0.00024655,7]
[361099481,1747254633404,-151.0,0.00024655,7]
[361099483,1747254633414,-400.0,0.00024656,2]
[361099484,1747254633423,-300.0,0.00024658,2]
[361099487,1747254633432,-151.0,0.00024686,2]
[361099488,1747254633442,-6168.90664898,0.00024797,11]
[361099490,1747254633451,-151.0,0.000249,7]
[361099492,1747254633461,-181.241063,0.000249,7]
[361099494,1747254633470,-181.241063,0.000249,7]
[361099496,1747254633480,-400.0,0.0002493,2]
[361099499,1747254633490,-181.241063,0.00025001,7]
[361099501,1747254633500,-181.241063,0.00025001,7]
[361099503,1747254633510,-181.241063,0.00025001,7]
[361099524,1747254633696,-181.241063,0.00025001,7]
[361099527,1747254633713,-181.241063,0.00025001,7]
[361099529,1747254633723,-181.24105839,0.00025001,7]
[361099531,1747254633732,-151.0,0.00025002,7]
[361099533,1747254633741,-151.0,0.00025002,7]
[361099535,1747254633750,-151.0,0.00025002,7]
[361099537,1747254633760,-151.0,0.00025002,7]
[361099539,1747254633769,-6168.90664898,0.00025003,12]
[361099541,1747254633778,-173.68154185,0.00025088,2]
[361099543,1747254633789,-546.1,0.00025178,3]
[361099545,1747254633799,-1800.21,0.000252,7]
[361099547,1747254633809,-400.0,0.00025204,2]
[361099549,1747254633818,-10134.50449192,0.00025205,5]
[361099551,1747254633827,-6168.90664898,0.0002521,12]
[361099553,1747254633836,-422.27619506,0.00025369,2]
[361099555,1747254633846,-997.9747837,0.00025385,2]
[361099557,1747254633855,-160.0,0.00025385,2]
[361099559,1747254633864,-6168.90664898,0.00025417,13]
[361099561,1747254633874,-570.3975639,0.00025446,4]
[361099563,1747254633883,-400.0,0.00025478,2]
[361099565,1747254633892,-6168.90664898,0.00025624,13]
[361099567,1747254633902,-218005.870651,0.00025708,2]
[361099569,1747254633911,-400.0,0.00025752,2]
[361099571,1747254633920,-6168.90664898,0.00025831,13]
[361099573,1747254633929,-400.0,0.00026026,2]
[361099575,1747254633938,-6168.90664898,0.00026038,14]
[361099577,1747254633948,-151.0,0.00026055,2]
[361099579,1747254633957,-812.0,0.000262,2]
[361099581,1747254633966,-33735.97,0.00026231,2]
[361099583,1747254633975,-6168.90664898,0.00026245,14]
[361099585,1747254633984,-400.0,0.000263,2]
[361099587,1747254633994,-6168.90664898,0.00026452,15]
[361099589,1747254634004,-218005.870651,0.0002649,2]
[361099591,1747254634013,-29764.79302239,0.000265,2]
[361099593,1747254634022,-400.0,0.00026574,2]
[361099595,1747254634031,-218005.870651,0.00026621,2]
[361099597,1747254634040,-501.51069326,0.00026631,2]
[361099599,1747254634049,-72893.21469,0.00026631,2]
[361099601,1747254634058,-362.9868952,0.00026658,2]
[361099603,1747254634068,-6168.90664898,0.00026659,15]
[361099605,1747254634077,-157.9005868,0.00026795,2]
[361099607,1747254634086,-151.0,0.000268,19]
[361099609,1747254634095,-1800.21,0.000268,7]
[361099611,1747254634104,-400.0,0.00026848,2]
[361099613,1747254634113,-6168.90664898,0.00026866,16]
[361099615,1747254634122,-1014.40834296,0.00026876,6]
[361099625,1747254634201,-2897.63428113,0.00026876,6]
[361099627,1747254634213,-12601.36737591,0.00026876,6]
[361099629,1747254634222,-30287.46,0.00026876,6]
[361099631,1747254634231,-142334.68,0.00026876,6]
[361099633,1747254634240,-153723.05,0.000269,7]
[361099635,1747254634250,-3646.46,0.000269,7]
[361099637,1747254634259,-14759.97,0.000269,2]
[361099639,1747254634272,-160.0,0.000269,7]
[361099641,1747254634281,-422.27619506,0.000269,7]
[361099643,1747254634291,-3665.19819711,0.00027,2]
[361099645,1747254634300,-340.1856045,0.00027,2]
[361099647,1747254634310,-328.0,0.00027,3]
[361099649,1747254634319,-1985.0651829,0.00027,7]
[361099652,1747254634329,-150.00392756,0.00027,2]
[361099654,1747254634339,-1000.0,0.00027,27]
[361099656,1747254634348,-314.30604044,0.00027,3]
[361099658,1747254634358,-6168.90664898,0.00027072,16]
[361099660,1747254634368,-264.34,0.00027122,2]
[361099662,1747254634377,-6168.90664898,0.00027279,16]
[361099664,1747254634386,-598.53,0.00027353,6]
[361099666,1747254634396,-196.14896231,0.0002739,21]
[361099668,1747254634407,-500.0,0.00027397,2]
[361099670,1747254634416,-388.34767664,0.00027397,2]
[361099672,1747254634425,-500.0,0.00027397,2]
[361099674,1747254634434,-500.0,0.00027397,2]
[361099676,1747254634444,-500.0,0.00027397,2]
[361099678,1747254634454,-500.0,0.00027397,2]
[361099680,1747254634463,-500.0,0.00027397,2]
[361099682,1747254634472,-500.0,0.00027397,2]
[361099684,1747254634482,-500.0,0.00027397,2]
[361099686,1747254634491,-564.65203358,0.00027397,2]
[361099688,1747254634501,-500.0,0.00027397,14]
[361099690,1747254634510,-375.40766568,0.00027397,14]
[361099692,1747254634522,-124.59233432,0.00027397,14]
[361099694,1747254634532,-500.0,0.00027397,14]
[361099696,1747254634543,-500.0,0.00027397,14]
[361099698,1747254634553,-500.0,0.00027397,14]
[361099701,1747254634566,-500.0,0.00027397,14]
[361099703,1747254634576,-500.0,0.00027397,14]
[361099705,1747254634585,-402.20166579,0.00027397,14]
[361099707,1747254634594,-400.0,0.00027397,2]
[361099709,1747254634606,-400.0,0.00027397,2]
[361099711,1747254634615,-400.0,0.00027397,2]
[361099713,1747254634625,-400.0,0.00027397,2]
[361099715,1747254634634,-400.0,0.00027397,2]
[361099717,1747254634643,-400.0,0.00027397,2]
[361099719,1747254634652,-233.85840136,0.00027397,2]
[361099721,1747254634662,-603.0,0.00027397,2]
[361099723,1747254634672,-400.0,0.00027397,60]
[361099725,1747254634682,-450.0,0.00027397,5]
[361099727,1747254634691,-500.0,0.00027397,5]
[361099729,1747254634700,-603.0,0.00027424,2]
[361099731,1747254634711,-603.0,0.00027452,2]
[361099733,1747254634720,-603.0,0.00027479,2]
[361099735,1747254634732,-6168.90664898,0.00027486,17]
[361099737,1747254634743,-10000.0,0.000275,3]
[361099739,1747254634753,-224.53700312,0.000275,2]
[361099742,1747254634765,-699.856,0.000275,2]
[361099882,1747254638205,-997.9747837,0.00025369,2]
[361099884,1747254638215,-6251.0775525,0.000275,2]
[361099892,1747254638315,-844.19082374,0.000275,2]
[361099894,1747254638327,-5844.14774415,0.000275,2]
[361099896,1747254638338,-8687.16628213,0.000275,2]
[361099898,1747254638349,-327.37724762,0.000275,2]
[361099900,1747254638360,-3611.32284018,0.000275,2]
[361099963,1747254640527,-466.82199935,0.000275,2]
[361099965,1747254640539,-835.17800065,0.000275,2]
[361099971,1747254640589,-834.40444356,0.000275,2]
[361100204,1747254643436,-3116.89600137,0.000275,2]
[361100205,1747254643493,-4924.79999392,0.000275,2]
[361100206,1747254643506,-5557.38552412,0.000275,2]
[361100207,1747254643553,-2853.3578627,0.000275,2]
[361100209,1747254643569,-821.8943932,0.000275,30]
[361100211,1747254643579,-1427.86052439,0.000275,38]
[361100213,1747254643589,-592.13445903,0.000275,2]
[361100499,1747254646398,-1518.362067,0.000275,2]
[361100501,1747254646411,-1963.13662808,0.000275,2]
[361100506,1747254646456,-5963.13326715,0.000275,2]
[361100622,1747254813450,3011.354,0.00027531,120]
[361100623,1747254878818,179.18334,0.00027397,120]
[361100624,1747254949471,161.047594,0.00013699,2]
[361100627,1747255019995,10000.0,0.00027531,120]
[361100683,1747255832450,-160.0,0.00021071,2]
[361100684,1747255832460,-102.60356982,0.00021071,2]
[361100685,1747255832504,-319.67262524,0.00021071,2]
[361100686,1747255832515,-997.9747837,0.00021079,2]
[361100687,1747255832525,-177.0881352,0.0002125,2]
[361100688,1747255832535,-151.702,0.00023114,2]
[361100689,1747255832545,-161.047594,0.00023182,2]
[361100690,1747255832555,-300.0,0.00023856,2]
[361100691,1747255832565,-500.0,0.00023857,2]
[361100692,1747255832577,-500.0,0.00023857,2]
[361100693,1747255832588,-500.0,0.00023857,2]
[361100694,1747255832598,-500.0,0.00023857,2]
[361100695,1747255832609,-500.0,0.0002386,2]
[361100696,1747255832619,-500.0,0.000239,2]
[361100698,1747255832630,-200.6631062,0.000239,2]
[361100700,1747255832641,-500.0,0.000241,2]
[361100702,1747255832652,-500.0,0.0002422,2]
[361100704,1747255832663,-500.0,0.00024633,2]
[361100706,1747255832674,-500.0,0.00024633,2]
[361100724,1747255832877,-500.0,0.00024633,2]
[361100725,1747255832921,-300.0,0.00024658,2]
[361100726,1747255832937,-363.666991,0.00025941,2]
[361100727,1747255832948,-725.2936946,0.00025941,2]
[361100728,1747255832959,-157.9553211,0.00026078,2]
[361100729,1747255832968,-306.0,0.00026078,2]
[361100730,1747255832978,-1168.1734054,0.00026078,2]
[361100731,1747255832988,-306.0,0.00026078,2]
[361100732,1747255832998,-157.9553211,0.00026078,2]
[361100733,1747255833008,-155.6585325,0.00026078,2]
[361100734,1747255833018,-380.2650426,0.00026675,4]
[361100735,1747255833027,-314.30604044,0.00027,3]
[361100736,1747255833037,-450.0,0.00027397,5]
[361100737,1747255833047,-500.0,0.00027397,5]
[361100738,1747255833057,-163.36573566,0.00027488,2]
[361100739,1747255833067,-336.20905551,0.00027488,2]
[361100740,1747255833077,-500.0,0.00027489,2]
[361100741,1747255833087,-500.0,0.00027489,2]
[361100742,1747255833097,-500.0,0.00027489,2]
[361100743,1747255833107,-500.0,0.00027489,2]
[361100744,1747255833116,-500.0,0.00027489,2]
[361100745,1747255833127,-500.0,0.00027489,2]
[361100746,1747255833136,-333.7818644,0.00027489,2]
[361100747,1747255833146,-224.98268756,0.00027489,2]
[361100748,1747255833155,-500.0,0.00027489,2]
[361100749,1747255833164,-31.20858505,0.00027489,2]
[361100750,1747255833177,-366.52949069,0.00027489,2]
[361100751,1747255833189,-102.26192426,0.00027489,2]
[361100752,1747255833198,-500.0,0.00027489,2]
[361100753,1747255833208,-500.0,0.00027489,2]
[361100754,1747255833217,-500.0,0.00027489,2]
[361100755,1747255833226,-500.0,0.00027489,2]
[361100756,1747255833236,-500.0,0.00027489,2]
[361100757,1747255833246,-500.0,0.00027489,2]
[361100758,1747255833256,-500.0,0.00027489,2]
[361100759,1747255833266,-500.0,0.00027489,2]
[361100760,1747255833275,-215.02813405,0.00027489,2]
[361100761,1747255833285,-500.0,0.00027489,2]
[361100762,1747255833294,-500.0,0.00027489,2]
[361100763,1747255833304,-500.0,0.00027489,2]
[361100764,1747255833314,-263.12777347,0.00027489,2]
[361100765,1747255833326,-236.87222653,0.00027489,2]
[361100766,1747255833336,-490.23574209,0.00027489,2]
[361100767,1747255833348,-9.76425791,0.00027489,2]
[361100768,1747255833358,-500.0,0.00027489,2]
[361100769,1747255833367,-918.27119272,0.0002749,2]
[361100806,1747255838465,-5435.5520406,0.0002749,2]
[361100807,1747255838523,-403.19028049,0.0002749,2]
[361100808,1747255838535,-3698.36895649,0.0002749,2]
[361100809,1747255838550,-7032.61754214,0.0002749,2]
[361100810,1747255838573,-3681.66136956,0.0002749,2]
[361100811,1747255838588,-7880.61719588,0.0002749,2]
[361100812,1747255838599,-34026.55960272,0.0002749,2]
[361100820,1747255840742,-3097.05725676,0.0002749,2]
[361100821,1747255840755,-29058.99131958,0.0002749,2]
[361100822,1747255840801,-2555.0,0.0002749,2]
[361100878,1747255843717,-659.2907214,0.0002749,2]
[361100880,1747255843729,-5215.18501736,0.0002749,2]
[361101057,1747255846642,-152.92927737,0.00027489,2]
[361101059,1747255846653,-23279.29723786,0.0002749,2]
[361101072,1747255846752,-2155.49666894,0.0002749,2]
[361101137,1747256000369,179.18334,0.00027397,120]
[361101139,1747256143503,161.047594,0.00013699,2]
[361101141,1747256365424,981.0,0.00027531,120]
[361101183,1747257031750,-1998.58846854,0.00024557,2]
[361101185,1747257031761,-171.06622754,0.00024558,2]
[361101186,1747257031770,-161.047594,0.00024907,2]
[361101187,1747257031780,-253.5100284,0.00026675,4]
[361101188,1747257031789,-200.0,0.000269,2]
[361101190,1747257031798,-411.26044342,0.000269,16]
[361101191,1747257031807,-411.26044326,0.00026934,16]
[361101193,1747257031816,-411.26044326,0.00026969,16]
[361101195,1747257031828,-1200.0,0.00026997,2]
[361101197,1747257031837,-300.0,0.00026997,2]
[361101199,1747257031847,-300.0,0.00026998,2]
[361101201,1747257031856,-300.0,0.00026998,2]
[361101203,1747257031865,-300.0,0.00026998,2]
[361101205,1747257031875,-500.0,0.00026999,2]
[361101207,1747257031885,-500.0,0.00026999,2]
[361101209,1747257031895,-500.0,0.00026999,2]
[361101211,1747257031904,-500.0,0.00026999,2]
[361101213,1747257031914,-303.92394189,0.00026999,2]
[361101215,1747257031923,-500.0,0.00026999,2]
[361101217,1747257031932,-538.11776863,0.00026999,2]
[361101219,1747257031942,-500.0,0.00026999,2]
[361101221,1747257031951,-500.0,0.00026999,2]
[361101223,1747257031960,-500.0,0.00026999,2]
[361101225,1747257031969,-500.0,0.00026999,2]
[361101227,1747257031978,-575.96916745,0.00026999,2]
[361101229,1747257031988,-500.0,0.00026999,2]
[361101232,1747257031998,-500.0,0.00026999,2]
[361101236,1747257032008,-500.0,0.00026999,2]
[361101239,1747257032018,-500.0,0.00026999,2]
[361101242,1747257032027,-500.0,0.00026999,2]
[361101245,1747257032036,-500.0,0.00026999,2]
[361101248,1747257032046,-500.0,0.00026999,2]
[361101250,1747257032055,-500.0,0.00026999,2]
[361101253,1747257032064,-156.36913768,0.00026999,2]
[361101255,1747257032073,-500.0,0.00026999,2]
[361101256,1747257032082,-500.0,0.00026999,2]
[361101258,1747257032092,-500.0,0.00026999,2]
[361101260,1747257032101,-500.0,0.00026999,2]
[361101262,1747257032110,-500.0,0.00026999,2]
[361101264,1747257032118,-500.0,0.00026999,2]
[361101266,1747257032127,-500.0,0.00026999,2]
[361101268,1747257032137,-500.0,0.00026999,2]
[361101270,1747257032146,-228.44248098,0.00026999,2]
[361101273,1747257032162,-271.55751902,0.00026999,2]
[361101275,1747257032170,-500.0,0.00026999,2]
[361101277,1747257032180,-500.0,0.00026999,2]
[361101279,1747257032189,-500.0,0.00026999,2]
[361101281,1747257032198,-356.23151538,0.00026999,2]
[361101283,1747257032207,-500.0,0.00026999,2]
[361101285,1747257032216,-500.0,0.00026999,2]
[361101287,1747257032225,-500.0,0.00026999,2]
[361101289,1747257032234,-362.51194842,0.00026999,2]
[361101291,1747257032244,-398.27345551,0.00026999,2]
[361101293,1747257032253,-500.0,0.00026999,2]
[361101295,1747257032262,-500.0,0.00026999,2]
[361101297,1747257032271,-500.0,0.00026999,2]
[361101299,1747257032280,-500.0,0.00026999,2]
[361101301,1747257032289,-500.0,0.00026999,2]
[361101303,1747257032298,-500.0,0.00026999,2]
[361101306,1747257032318,-500.0,0.00026999,2]
[361101308,1747257032329,-500.0,0.00026999,2]
[361101310,1747257032338,-360.40240057,0.00026999,2]
[361101313,1747257032351,-139.59759943,0.00026999,2]
[361101315,1747257032361,-500.0,0.00026999,2]
[361101316,1747257032370,-152.4554076,0.00026999,2]
[361101317,1747257032379,-500.0,0.00026999,2]
[361101318,1747257032388,-500.0,0.00026999,2]
[361101319,1747257032398,-500.0,0.00026999,2]
[361101320,1747257032407,-500.0,0.00026999,2]
[361101321,1747257032417,-500.0,0.00026999,2]
[361101322,1747257032427,-650.0,0.00026999,2]
[361101323,1747257032437,-500.0,0.00026999,2]
[361101324,1747257032446,-50000.0,0.00027,2]
[361101325,1747257032455,-314.30604044,0.00027,3]
[361101326,1747257032465,-314.30604044,0.00027,3]
[361101327,1747257032474,-411.26044326,0.00027003,16]
[361101328,1747257032484,-151.0,0.00027021,2]
[361101329,1747257032493,-411.26044326,0.00027038,16]
[361101330,1747257032502,-411.26044326,0.00027072,16]
[361101331,1747257032512,-411.26044326,0.00027107,16]
[361101332,1747257032521,-411.26044326,0.00027141,16]
[361101333,1747257032530,-411.26044326,0.00027176,16]
[361101334,1747257032540,-997.9747837,0.00027177,2]
[361101335,1747257032549,-160.0,0.00027177,2]
[361101336,1747257032559,-422.27619506,0.00027177,2]
[361101337,1747257032569,-411.26044326,0.0002721,16]
[361101338,1747257032578,-411.26044326,0.00027245,16]
[361101339,1747257032588,-411.26044326,0.00027279,16]
[361101340,1747257032597,-411.26044326,0.00027314,16]
[361101341,1747257032606,-300.0,0.0002734,2]
[361101342,1747257032616,-411.26044326,0.00027348,16]
[361101343,1747257032626,-411.26044326,0.00027383,17]
[361101344,1747257032637,-151.702,0.00027389,16]
[361101345,1747257032648,-400.0,0.00027397,60]
[361101346,1747257032662,-500.0,0.00027397,5]
[361101347,1747257032672,-300.0,0.000274,30]
[361101348,1747257032681,-411.26044326,0.00027417,17]
[361101349,1747257032691,-11790.53764558,0.00027442,2]
[361101350,1747257032700,-1934.22590975,0.00027442,3]
[361101351,1747257032709,-178896.045792,0.00027442,2]
[361101352,1747257032718,-178896.045792,0.00027451,2]
[361101353,1747257032728,-411.26044326,0.00027452,17]
[361101354,1747257032737,-3208.33,0.00027461,2]
[361101355,1747257032747,-3208.33,0.00027461,2]
[361101356,1747257032757,-3208.33,0.00027461,2]
[361101357,1747257032767,-3208.33,0.00027461,2]
[361101358,1747257032776,-3208.33,0.00027461,2]
[361101359,1747257032786,-3208.33,0.00027461,2]
[361101360,1747257032795,-3208.33,0.00027461,2]
[361101361,1747257032804,-3208.33,0.00027461,2]
[361101362,1747257032814,-3208.33,0.00027461,2]
[361101363,1747257032824,-3208.33,0.00027461,2]
[361101364,1747257032833,-3208.33,0.00027461,2]
[361101365,1747257032843,-3208.33,0.00027461,2]
[361101366,1747257032852,-3208.33,0.00027461,2]
[361101367,1747257032861,-3208.33,0.00027461,2]
[361101368,1747257032870,-3208.33,0.00027461,2]
[361101369,1747257032880,-3208.33,0.00027461,2]
[361101370,1747257032890,-3208.33,0.00027461,2]
[361101371,1747257032900,-3208.33,0.00027461,2]
[361101372,1747257032910,-3208.33,0.00027461,2]
[361101373,1747257032919,-3208.33,0.00027461,2]
[361101374,1747257032932,-3208.33,0.00027461,2]
[361101375,1747257032941,-3208.33,0.00027461,2]
[361101376,1747257032950,-3208.33,0.00027461,2]
[361101377,1747257032960,-3208.41,0.00027461,2]
[361101378,1747257032969,-20611.07903291,0.00027463,2]
[361101379,1747257032983,-446.61247371,0.00027463,2]
[361101394,1747257037735,-20533.9709597,0.00027463,2]
[361101396,1747257037794,-647.97717085,0.00027463,2]
[361101801,1747257045913,-309.74,0.00027463,2]
[361102079,1747257165823,179.18334,0.00027397,120]
[361102080,1747257178127,161.047594,0.00013699,2]
[361102083,1747257555614,-2909.99210166,0.00026575,2]
[361102084,1747257555635,-169.0066856,0.00026675,4]
[361102085,1747257555659,-160.0,0.00026899,2]
[361102086,1747257555683,-205.63022163,0.000269,16]
[361102087,1747257555705,-205.63022163,0.0002694,16]
[361102088,1747257555729,-205.63022163,0.0002698,16]
[361102089,1747257555762,-262.5013276,0.00026998,2]
[361102090,1747257555783,-314.30604044,0.00027,3]
[361102091,1747257555805,-314.30604044,0.00027,3]
[361102092,1747257555828,-205.63022163,0.0002702,16]
[361102093,1747257555852,-205.63022163,0.0002706,16]
[361102094,1747257555880,-205.63022163,0.000271,16]
[361102095,1747257555904,-205.63022163,0.0002714,16]
[361102096,1747257555930,-205.63022163,0.0002718,16]
[361102097,1747257555952,-300.0,0.00027219,2]
[361102098,1747257555975,-205.63022163,0.0002722,16]
[361102099,1747257555998,-205.63022163,0.0002726,16]
[361102100,1747257556023,-205.63022163,0.000273,16]
[361102101,1747257556045,-997.9747837,0.00027329,2]